bitfinex-derivatives/quotes_BNBF0:USTF0_20250511
["timestamp","ask_amount","ask_price","bid_price","bid_amount"]
[1746947424762,0.24105631,657.36,654.64,0.28013022]
[1746947425665,0.24105631,657.35,654.65,0.28013022]
[1746947425963,0.24105631,657.34,654.66,0.28013022]
[1746947426364,0.24105631,657.33,654.67,0.28013022]
[1746947426566,0.24105631,657.32,654.68,0.28013022]
[1746947426865,0.24105631,657.32,654.69,0.28013022]
[1746947427261,0.24105631,657.32,654.7,0.28013022]
[1746947427564,0.24105631,657.32,654.71,0.28013022]
[1746947428165,0.24105631,657.32,654.72,0.28013022]
[1746947428464,0.24105631,657.32,654.73,0.28013022]
[1746947428766,0.24105631,657.32,654.74,0.28013022]
[1746947429167,0.24105631,657.32,654.75,0.28013022]
[1746947429468,0.26514791,657.31,654.76,0.28013022]
[1746947429763,0.24105631,657.3,654.77,0.28013022]
[1746947430165,0.24105631,657.3,654.78,0.28013022]
[1746947430462,0.24105631,657.3,654.79,0.28013022]
[1746947430761,0.24105631,657.3,654.8,0.28013022]
[1746947431166,0.24105631,657.3,654.81,0.28013022]
[1746947431461,0.24105631,657.3,654.82,0.28013022]
[1746947431765,0.24105631,657.3,654.83,0.28013022]
[1746947432066,0.24105631,657.3,654.84,0.28013022]
[1746947432565,0.24105631,657.3,654.85,0.28013022]
[1746947432766,0.24105631,657.37,654.86,0.28013022]
[1746947433267,0.24105631,657.37,654.87,0.28013022]
[1746947433464,0.26512771,657.36,654.87,0.28013022]
[1746947433664,0.50618402,657.36,654.88,0.28013022]
[1746947433967,0.24105631,657.35,654.75,0.28013022]
[1746947435467,0.30423803,657.38,654.74,0.26512165]
[1746947436068,0.24112419,657.37,654.75,0.28006958]
[1746947436566,0.26512165,657.36,654.75,0.28006958]
[1746947436767,0.24112419,657.35,654.88,0.30539946]
[1746947437262,0.24112419,657.35,654.89,0.28006958]
[1746947437467,0.24112419,657.35,655.0,0.30534351]
[1746947437866,0.24112419,657.35,655.01,0.28006958]
[1746947438671,0.26509539,657.34,655.01,0.28006958]
[1746947438968,0.24112419,657.33,655.01,0.28006958]
[1746947440674,0.24112419,657.33,655.0,0.30534351]
[1746947440675,0.24112419,657.33,655.02,0.28006958]
[1746947441170,0.24112419,657.33,655.03,0.28006958]
[1746947441475,0.26507318,657.32,655.04,0.28006958]
[1746947441774,0.24112419,657.31,655.05,0.28006958]
[1746947442076,0.24112419,657.31,655.06,0.28006958]
[1746947442474,0.24112419,657.31,655.07,0.28006958]
[1746947442774,0.24112419,657.31,655.0,0.30534351]
[1746947442775,0.24112419,657.31,655.08,0.28006958]
[1746947443175,0.24112419,657.31,655.09,0.28006958]
[1746947443474,0.24112419,657.31,655.0,0.30534351]
[1746947443475,0.24112419,657.31,655.1,0.28006958]
[1746947443775,0.24112419,657.31,655.11,0.28006958]
[1746947444377,0.24112419,657.31,655.12,0.28006958]
[1746947444675,0.24112419,657.31,655.22,0.30524098]
[1746947444871,0.30427969,657.29,655.22,0.30524098]
[1746947445077,0.30427969,657.29,655.23,0.28006958]
[1746947445375,0.24112419,657.28,655.23,0.28006958]
[1746947446170,0.24112419,657.28,655.25,0.30522701]
[1746947446371,0.30429358,657.26,655.25,0.30522701]
[1746947446572,0.30429358,657.26,655.26,0.28006958]
[1746947446772,0.24112419,657.25,655.28,0.30521303]
[1746947447279,0.24112419,657.25,655.29,0.28006958]
[1746947447878,0.24112419,657.25,655.29,0.60606958]
[1746947448479,0.24112419,657.25,655.3,0.28006958]
[1746947448774,0.24112419,657.25,655.31,0.28006958]
[1746947449279,0.24112419,657.25,655.32,0.28006958]
[1746947449776,0.24112419,657.25,655.3,0.28006958]
[1746947450778,0.30430284,657.24,655.32,0.3051944]
[1746947450990,0.24112419,657.23,655.33,0.28006958]
[1746947451479,0.24112419,657.23,655.35,0.30518043]
[1746947451879,0.3043121,657.22,655.35,0.30518043]
[1746947452180,0.24112419,657.21,655.36,0.28006958]
[1746947452476,0.3043121,657.22,655.36,0.28006958]
[1746947452777,0.3043121,657.22,655.38,0.30516646]
[1746947453276,0.3043121,657.22,655.39,0.28006958]
[1746947453480,0.3043121,657.22,655.41,0.30515249]
[1746947454173,0.3043121,657.22,655.42,0.28006958]
[1746947454380,0.3043121,657.22,655.44,0.30513853]
[1746947454981,0.3043121,657.22,655.45,0.28006958]
[1746947456478,0.3043121,657.22,655.47,0.30512456]
[1746947457178,0.3043121,657.22,655.48,0.28006958]
[1746947457682,0.3043121,657.22,655.5,0.3051106]
[1746947457982,0.3043121,657.22,655.51,0.28006958]
[1746947458183,0.3043121,657.22,655.53,0.30509663]
[1746947458582,0.3043121,657.22,655.54,0.28006958]
[1746947458784,0.3043121,657.22,655.56,0.30508267]
[1746947459383,0.3043121,657.22,655.57,0.28006958]
[1746947459583,0.3043121,657.22,655.59,0.30506871]
[1746947459881,0.3043121,657.22,655.6,0.27985957]
[1746947460078,0.3043121,657.22,655.62,0.30505475]
[1746947460582,0.3043121,657.22,655.63,0.27985957]
[1746947460776,0.3043121,657.22,655.65,0.30504079]
[1746947461190,0.3043121,657.22,655.66,0.27985957]
[1746947461491,0.3043121,657.22,655.68,0.30502684]
[1746947461789,0.3043121,657.22,655.69,0.27985957]
[1746947461993,0.3043121,657.22,655.71,0.30501288]
[1746947462493,0.3043121,657.22,655.72,0.27985957]
[1746947462892,0.3043121,657.22,655.74,0.30499893]
[1746947463188,0.3043121,657.22,655.75,0.27985957]
[1746947463392,0.3043121,657.22,655.77,0.30498497]
[1746947463789,0.3043121,657.22,655.78,0.27985957]
[1746947463990,0.3043121,657.22,655.79,0.27985957]
[1746947464392,0.3043121,657.22,655.81,0.30496637]
[1746947464695,0.3043121,657.22,655.82,0.27985957]
[1746947465093,0.3043121,657.22,655.84,0.30495242]
[1746947465994,0.3043121,657.22,655.85,0.27985957]
[1746947466194,0.3043121,657.22,655.87,0.30493847]
[1746947466694,0.3043121,657.22,655.88,0.27985957]
[1746947466895,0.3043121,657.22,655.9,0.30492453]
[1746947467194,0.3043121,657.22,655.91,0.27985957]
[1746947467595,0.3043121,657.22,655.92,0.27985957]
[1746947467895,0.3043121,657.22,655.94,0.30490593]
[1746947468291,0.3043121,657.22,655.95,0.27985957]
[1746947468492,0.3043121,657.22,655.97,0.30489199]
[1746947469188,0.3043121,657.22,655.98,0.27985957]
[1746947469393,0.3043121,657.22,656.0,0.30487804]
[1746947469697,0.3043121,657.22,656.01,0.27985957]
[1746947469890,0.3043121,657.22,656.03,0.3048641]
[1746947470197,0.3043121,657.22,656.04,0.333]
[1746947470397,0.3043121,657.22,656.06,0.30485016]
[1746947470597,0.3043121,657.22,656.07,0.27968624]
[1746947470891,0.3043121,657.22,656.09,0.30483622]
[1746947471695,0.3043121,657.22,656.1,0.27968624]
[1746947471899,0.3043121,657.22,656.12,0.30482228]
[1746947472196,0.3043121,657.22,656.13,0.27968624]
[1746947472389,0.3043121,657.22,656.15,0.30480835]
[1746947473496,0.3043121,657.22,656.16,0.27972293]
[1746947473692,0.3043121,657.22,656.18,0.30479441]
[1746947474094,0.3043121,657.22,656.19,0.27972293]
[1746947474296,0.3043121,657.22,656.21,0.30478048]
[1746947474797,0.3043121,657.22,656.22,0.27972293]
[1746947474998,0.3043121,657.22,656.24,0.30476654]
[1746947475199,0.3043121,657.22,656.25,0.27972293]
[1746947475399,0.3043121,657.22,656.27,0.30475261]
[1746947475698,0.3043121,657.22,656.28,0.27972293]
[1746947475891,0.3043121,657.22,656.3,0.30473868]
[1746947476301,0.3043121,657.22,656.31,0.27972293]
[1746947476598,0.3043121,657.22,656.33,0.30472475]
[1746947476796,0.3043121,657.22,656.34,0.27972293]
[1746947477001,0.3043121,657.22,656.36,0.30471082]
[1746947477299,0.3043121,657.22,656.37,0.27972293]
[1746947477599,0.3043121,657.22,656.38,0.30470154]
[1746947477999,0.3043121,657.22,656.39,0.27972293]
[1746947478199,0.3043121,657.22,656.4,0.30469226]
[1746947484606,0.3043121,657.22,656.41,0.2797212]
[1746947484807,0.3043121,657.22,656.42,0.30468297]
[1746947485208,0.3043121,657.22,656.43,0.2797212]
[1746947485410,0.3043121,657.22,656.44,0.30467369]
[1746947486612,0.3043121,657.22,656.45,0.498]
[1746947486913,0.3043121,657.22,656.46,0.30466441]
[1746947494613,0.3043121,657.22,656.47,0.48]
[1746947494817,0.3043121,657.22,656.48,0.30465513]
[1746947511728,0.24111748,657.21,656.48,0.30465513]
[1746947517934,0.3043121,657.22,656.48,0.30465513]
[1746947518241,0.24111574,657.21,656.48,0.30465513]
[1746947519840,0.3043121,657.22,656.48,0.30465513]
[1746947524341,0.3043121,657.22,656.49,0.368]
[1746947524836,0.3043121,657.22,656.49,0.67265048]
[1746947531243,0.3043121,657.22,656.5,0.30464584]
[1746947540961,0.3043121,657.22,656.51,0.571]
[1746947542759,0.3043121,657.22,656.52,0.30463656]
[1746947544259,0.24130098,657.21,656.52,0.30463656]
[1746947545461,0.3043121,657.22,656.52,0.30463656]
[1746947563085,0.3043121,657.22,656.53,0.367]
[1746947565581,0.24102556,657.21,656.53,0.367]
[1746947567587,0.3043121,657.22,656.54,0.30462728]
[1746947594819,0.3043121,657.22,656.55,0.419]
[1746947596018,0.3043121,657.22,656.56,0.304618]
[1746947628146,0.3043121,657.22,656.56,0.840618]
[1746947698007,0.3043121,657.22,656.57,0.27965831]
[1746947698700,0.3043121,657.22,656.58,0.30460873]
[1746947700195,0.3043121,657.22,656.59,0.27961452]
[1746947701505,0.3043121,657.22,656.6,0.567]
[1746947702004,0.3043121,657.22,656.61,0.27961452]
[1746947705208,0.3043121,657.22,656.62,0.30459017]
[1746947705607,0.3043121,657.22,656.63,0.27961452]
[1746947706201,0.3043121,657.22,656.64,0.30458089]
[1746947706812,0.3043121,657.22,656.65,0.27961452]
[1746947707915,0.3043121,657.22,656.66,0.30457162]
[1746947708513,0.3043121,657.22,656.67,0.27961452]
[1746947708912,0.3043121,657.22,656.68,0.30456234]
[1746947709414,0.3043121,657.22,656.69,0.27961452]
[1746947709616,0.3043121,657.22,656.7,0.30455306]
[1746947709915,0.3043121,657.22,656.71,0.27961452]
[1746947710216,0.3043121,657.22,656.7,0.30455306]
[1746947721920,0.3043121,657.22,656.71,0.624]
[1746947722619,0.3043121,657.22,656.72,0.30454379]
[1746947767748,0.24091107,657.21,656.72,0.30454379]
[1746947773252,0.24091107,657.21,656.7,0.63]
[1746947774452,0.3043121,657.22,656.7,0.63]
[1746947774653,0.569242,657.22,656.7,0.63]
[1746947774852,0.24080397,657.21,656.7,0.63]
[1746947778458,0.3043121,657.22,656.7,0.63]
[1746947778756,0.24083142,657.21,656.7,0.63]
[1746947784765,0.26493394,657.2,656.7,0.63]
[1746947785365,0.24083142,657.19,656.7,0.63]
[1746947786666,0.26495613,657.18,656.7,0.63]
[1746947787567,0.24083142,657.17,656.7,0.63]
[1746947789669,0.26495613,657.16,656.7,0.63]
[1746947790765,0.24076575,657.15,656.7,0.63]
[1746947791570,0.24076575,657.21,656.7,0.63]
[1746947795569,0.26493999,657.2,656.7,0.63]
[1746947795872,0.24076575,657.19,656.7,0.63]
[1746947800676,0.24076575,657.19,656.18,0.30479441]
[1746947801576,0.24076575,657.21,656.18,0.30479441]
[1746947801776,0.26500657,657.18,656.18,0.30479441]
[1746947802377,0.24076575,657.17,656.18,0.30479441]
[1746947804680,0.26501666,657.16,656.4,0.77469226]
[1746947804890,0.24076575,657.15,656.4,0.77469226]
[1746947810586,0.26503079,657.14,656.4,0.77469226]
[1746947810983,0.24076575,657.13,656.4,0.77469226]
[1746947813687,0.26503281,657.12,656.4,0.77469226]
[1746947814291,0.24076575,657.11,656.4,0.77469226]
[1746947815088,0.26503281,657.12,656.4,0.77469226]
[1746947815489,0.24054567,657.11,656.4,0.77469226]
[1746947816690,0.26505097,657.1,656.4,0.77469226]
[1746947816989,0.24054567,657.09,656.4,0.77469226]
[1746947819686,0.26503886,657.08,656.4,0.77469226]
[1746947820388,0.24052878,657.07,656.4,0.77469226]
[1746947824391,0.26503886,657.08,656.4,0.77469226]
[1746947825295,0.24060412,657.07,656.4,0.77469226]
[1746947825689,0.50558849,657.07,656.4,0.77469226]
[1746947826099,0.24060412,657.06,656.4,0.77469226]
[1746947828602,0.26499042,657.05,656.4,0.77469226]
[1746947829201,0.24060412,657.04,656.4,0.77469226]
[1746947830899,0.24060412,657.04,656.4,0.30469226]
[1746947832903,0.26499042,657.05,656.4,0.30469226]
[1746947833103,0.24040088,657.04,656.4,0.30469226]
[1746947834205,0.24040088,657.03,656.4,0.30469226]
[1746947834704,0.24040088,657.02,656.4,0.30469226]
[1746947835007,0.24040088,657.04,656.4,0.30469226]
[1746947837611,0.24040088,657.03,656.4,0.30469226]
[1746947838310,0.24040088,657.04,656.4,0.30469226]
[1746947838509,0.24040088,657.02,656.4,0.30469226]
[1746947838906,0.24040088,657.04,656.4,0.30469226]
[1746947840905,0.24040088,657.03,656.4,0.30469226]
[1746947841107,0.24040088,657.02,656.4,0.30469226]
[1746947841310,0.24040088,657.02,656.4,0.09766318]
[1746947841511,0.24040088,657.01,656.4,0.09766318]
[1746947841808,0.24040088,657.0,656.4,0.09766318]
[1746947842211,0.24040088,656.99,656.4,0.09766318]
[1746947842510,0.24040088,657.04,656.4,0.09766318]
[1746947842904,0.26512771,656.98,656.4,0.09766318]
[1746947843109,0.24040088,656.97,656.4,0.09766318]
[1746947844211,1.92318063,656.94,656.4,0.09766318]
[1746947844611,0.24040088,656.93,656.4,0.09766318]
[1746947847012,0.24040088,656.97,656.4,0.09766318]
[1746947847614,0.26512771,656.98,656.4,0.09766318]
[1746947847910,0.24039995,656.97,656.4,0.09766318]
[1746947850314,0.24039995,656.96,656.4,0.09766318]
[1746947850614,0.24039995,656.97,656.4,0.09766318]
[1746947851318,0.26512771,656.98,656.4,0.09766318]
[1746947851813,0.24041258,656.97,656.4,0.09766318]
[1746947852618,0.24041258,656.96,656.4,0.09766318]
[1746947852920,0.24041258,656.95,656.4,0.09766318]
[1746947853221,0.24041258,656.94,656.4,0.09766318]
[1746947853620,0.24041258,656.93,656.4,0.09766318]
[1746947853920,0.24041258,656.92,656.4,0.09766318]
[1746947854320,0.24041258,656.91,656.4,0.09766318]
[1746947854616,0.24041258,657.21,656.4,0.09766318]
[1746947854815,0.3043121,657.22,656.4,0.09766318]
[1746947854816,0.24041258,657.2,656.4,0.09766318]
[1746947855015,0.50547163,657.2,656.4,0.09766318]
[1746947855318,0.24041258,657.19,656.4,0.09766318]
[1746947855919,0.24041258,657.18,656.4,0.09766318]
[1746947856320,0.24041258,657.17,656.4,0.09766318]
[1746947856823,0.24041258,657.16,656.4,0.09766318]
[1746947857219,0.24041258,657.15,656.4,0.09766318]
[1746947857525,0.24041258,657.14,656.4,0.09766318]
[1746947857824,0.24041258,657.19,656.4,0.09766318]
[1746947858228,0.24041258,657.18,656.4,0.09766318]
[1746947858527,0.24041258,657.17,656.4,0.09766318]
[1746947858727,0.50545952,657.17,656.4,0.09766318]
[1746947859430,0.24041258,657.16,656.4,0.09766318]
[1746947859833,0.24041258,657.15,656.4,0.09766318]
[1746947860129,0.26504694,657.17,656.4,0.09766318]
[1746947860332,0.24057866,657.16,656.4,0.09766318]
[1746947860730,0.24057866,657.15,656.4,0.09766318]
[1746947861025,0.24057866,657.16,656.4,0.09766318]
[1746947861530,0.24057866,657.15,656.4,0.09766318]
[1746947861725,0.24057866,657.14,656.4,0.09766318]
[1746947862033,0.24057866,657.13,656.4,0.09766318]
[1746947862330,0.24057866,657.12,656.4,0.09766318]
[1746947862630,0.24057866,657.11,656.4,0.09766318]
[1746947862931,1.92318063,657.06,656.4,0.09766318]
[1746947863431,0.24057866,657.05,656.4,0.09766318]
[1746947863932,0.24057866,657.04,656.4,0.09766318]
[1746947864332,0.24057866,657.05,656.4,0.09766318]
[1746947864734,1.92318063,656.94,656.4,0.09766318]
[1746947865232,0.24057866,656.93,656.4,0.09766318]
[1746947865733,0.26510549,656.92,656.4,0.09766318]
[1746947866134,0.24057866,656.91,656.4,0.09766318]
[1746947866934,0.24057866,656.9,656.4,0.09766318]
[1746947867239,0.24057866,656.91,656.4,0.09766318]
[1746947867637,0.24057866,656.9,656.4,0.09766318]
[1746947868034,0.24057866,657.21,656.4,0.09766318]
[1746947868338,0.24057866,657.2,656.4,0.09766318]
[1746947868638,0.50566093,657.2,656.4,0.09766318]
[1746947868833,1.92318063,657.02,656.4,0.09766318]
[1746947869233,0.24057866,657.01,656.4,0.09766318]
[1746947869541,0.24057866,657.0,656.4,0.09766318]
[1746947869841,0.24057866,656.99,656.4,0.09766318]
[1746947870139,0.24057866,656.98,656.4,0.09766318]
[1746947870542,0.24057866,656.97,656.4,0.09766318]
[1746947870940,0.24057866,657.01,656.4,0.09766318]
[1746947871440,0.24057866,657.0,656.4,0.09766318]
[1746947872141,0.24057866,657.12,656.4,0.09766318]
[1746947872535,0.24057866,656.99,656.4,0.09766318]
[1746947872739,0.24057866,657.12,656.4,0.09766318]
[1746947873141,0.24057866,657.11,656.4,0.09766318]
[1746947873445,0.24057866,657.1,656.4,0.09766318]
[1746947873742,0.24057866,657.09,656.15,0.528]
[1746947873941,0.24057866,657.08,656.15,0.528]
[1746947874345,0.24057866,657.07,656.15,0.528]
[1746947874641,1.92318063,656.99,656.15,0.528]
[1746947875239,0.24057866,656.98,656.15,0.528]
[1746947875639,0.24057866,656.97,656.15,0.528]
[1746947875944,0.24057866,656.96,656.15,0.528]
[1746947876344,0.24057866,656.95,656.15,0.528]
[1746947876745,0.24057866,656.94,656.15,0.528]
[1746947876942,0.24057866,656.93,656.15,0.528]
[1746947877246,0.24057866,656.92,656.15,0.528]
[1746947877747,0.24057866,656.91,656.15,0.528]
[1746947878050,0.24057866,656.9,656.15,0.528]
[1746947878249,1.92318063,656.81,656.15,0.528]
[1746947878748,0.24057866,656.8,656.15,0.528]
[1746947881049,0.24057866,656.99,656.15,0.528]
[1746947881549,0.26529243,656.98,656.15,0.528]
[1746947882048,0.24057866,656.97,656.15,0.528]
[1746947885754,0.24057866,657.85,656.15,0.528]
[1746947886156,0.24057866,657.84,653.73,0.95271709]
[1746947886350,0.24057866,657.84,653.93,0.30584313]
[1746947886555,1.92318063,657.56,654.11,0.95271709]
[1746947886754,0.24057866,657.55,654.12,0.90884755]
[1746947887255,0.24057866,657.54,654.13,0.90884755]
[1746947887459,0.30417325,657.52,654.13,0.90884755]
[1746947887656,0.30417325,657.52,654.14,0.28007402]
[1746947887956,0.24057866,657.51,654.15,0.28007402]
[1746947888256,0.24057866,657.51,654.16,0.28007402]
[1746947888555,0.24057866,657.51,654.17,0.28007402]
[1746947888756,0.2651267,657.5,654.39,0.95271709]
[1746947889357,0.24057866,657.49,654.4,0.28007402]
[1746947889755,0.24057866,657.49,654.41,0.28007402]
[1746947890155,0.24057866,657.49,654.42,0.28007402]
[1746947890458,0.24057866,657.49,654.43,0.28007402]
[1746947890760,0.24057866,657.49,654.44,0.28007402]
[1746947891156,0.24057866,657.49,654.45,0.28007402]
[1746947891653,0.24057866,657.49,654.46,0.28007402]
[1746947892157,0.24057866,657.49,654.47,0.28007402]
[1746947892559,0.24057866,657.49,654.48,0.28007402]
[1746947892955,0.24057866,657.49,654.49,0.28007402]
[1746947893357,0.24057866,657.49,654.5,0.28007402]
[1746947893559,0.2651267,657.5,654.41,0.556]
[1746947893962,0.24075597,657.49,654.42,0.28001222]
[1746947894261,0.24075597,657.49,654.43,0.28001222]
[1746947894656,0.2651065,657.48,654.44,0.28001222]
[1746947894859,0.24075597,657.47,654.45,0.28001222]
[1746947895256,0.24075597,657.47,654.46,0.28001222]
[1746947895465,0.24075597,657.47,654.47,0.28001222]
[1746947895863,0.24075597,657.47,654.48,0.28001222]
[1746947896263,0.24075597,657.47,654.49,0.28001222]
[1746947896563,0.2651065,657.48,654.41,0.556]
[1746947896964,0.24077869,657.47,654.42,0.27997796]
[1746947897264,0.24077869,657.47,654.43,0.27997796]
[1746947897666,0.26510852,657.46,654.44,0.27997796]
[1746947897863,0.24077869,657.45,654.45,0.27997796]
[1746947898361,0.24077869,657.45,654.46,0.27997796]
[1746947898666,0.24077869,657.45,654.42,0.27997796]
[1746947899167,0.24077869,657.45,654.43,0.27997796]
[1746947899465,0.24077869,657.45,654.44,0.27997796]
[1746947899772,0.24077869,657.45,654.45,0.27997796]
[1746947900067,0.24077869,657.45,654.46,0.27997796]
[1746947900567,0.24077869,657.45,654.47,0.27997796]
[1746947900869,0.26515397,657.44,654.48,0.27997796]
[1746947901167,0.24077869,657.43,654.49,0.27997796]
[1746947901474,0.24077869,657.43,654.5,0.27997796]
[1746947901768,0.24077869,657.43,654.51,0.27997796]
[1746947902066,0.24077869,657.43,654.52,0.27997796]
[1746947902362,0.24077869,657.43,654.53,0.27997796]
[1746947902667,0.24077869,657.43,654.54,0.27997796]
[1746947903067,0.24077869,657.42,654.55,0.27997796]
[1746947903267,0.26515397,657.44,654.41,0.556]
[1746947903467,0.30417325,657.52,654.41,0.556]
[1746947903666,0.26515902,657.41,654.42,0.54527425]
[1746947903970,0.24066458,657.4,654.43,0.28011523]
[1746947904262,0.24066458,657.39,654.44,0.28011523]
[1746947904669,0.24066458,657.38,654.45,0.28011523]
[1746947904963,0.24066458,657.37,654.46,0.28011523]
[1746947905267,0.24066458,657.36,654.47,0.28011523]
[1746947905565,0.24066458,657.36,654.48,0.28011523]
[1746947905768,0.24066458,657.35,654.48,0.28011523]
[1746947906070,0.26515801,657.38,654.49,0.28011523]
[1746947906071,0.24066458,657.34,654.49,0.28011523]
[1746947906363,0.24066458,657.37,654.5,0.28011523]
[1746947906766,0.50582663,657.36,654.51,0.28011523]
[1746947907264,0.24066458,657.35,654.52,0.28011523]
[1746947907767,0.24066458,657.35,654.66,0.30550209]
[1746947908166,0.24066458,657.35,654.67,0.28011523]
[1746947908670,0.24066458,657.35,654.68,0.28011523]
[1746947909062,0.24066458,657.35,654.69,0.28011523]
[1746947909469,0.24066458,657.35,654.7,0.28011523]
[1746947909770,0.26516609,657.34,654.7,0.28011523]
[1746947910070,0.24066458,657.33,654.71,0.28011523]
[1746947910965,0.24066458,657.32,654.72,0.28011523]
[1746947911270,0.24066458,657.33,654.73,0.28011523]
[1746947911568,0.24066458,657.32,654.74,0.28011523]
[1746947911969,0.24066458,657.31,654.75,0.28011523]
[1746947912370,0.24066458,657.3,654.76,0.28011523]
[1746947912671,0.24066458,657.29,654.77,0.28011523]
[1746947912971,0.24066458,657.28,654.78,0.28011523]
[1746947913367,0.24066458,657.27,654.79,0.28011523]
[1746947913671,0.24066458,657.29,654.8,0.28011523]
[1746947913967,0.24066458,657.29,654.81,0.28011523]
[1746947914468,0.24066458,657.29,654.82,0.28011523]
[1746947914672,0.24066458,657.29,654.83,0.28011523]
[1746947915068,0.24066458,657.29,654.84,0.28011523]
[1746947915373,0.24066458,657.29,654.85,0.28011523]
[1746947915869,0.26511357,657.28,654.86,0.28011523]
[1746947916173,0.24066458,657.27,654.87,0.28011523]
[1746947916475,0.24066458,657.27,654.72,0.28011523]
[1746947917176,0.24066458,657.27,654.73,0.28011523]
[1746947917376,0.24066458,657.27,654.71,0.26511357]
[1746947917377,0.24066458,657.27,654.74,0.28011523]
[1746947917676,0.24066458,657.51,654.75,0.28011523]
[1746947917876,0.24066458,657.51,654.75,0.84111523]
[1746947918071,0.24066458,657.51,654.76,0.28011523]
[1746947918274,0.24066458,657.51,654.77,0.28011523]
[1746947918673,0.26505804,657.5,654.78,0.28011523]
[1746947918871,0.24066458,657.49,654.79,0.28011523]
[1746947919475,0.24066458,657.49,654.92,0.3053808]
[1746947919977,0.24066458,657.49,654.93,0.28011523]
[1746947920279,0.24066458,657.49,654.94,0.28011523]
[1746947920679,0.24066458,657.49,654.95,0.28011523]
[1746947921280,0.24066458,657.49,654.96,0.28011523]
[1746947921574,0.24066458,657.49,654.97,0.28011523]
[1746947921880,0.24066458,657.49,654.98,0.28011523]
[1746947922281,0.24066458,657.49,654.99,0.28011523]
[1746947922575,0.24066458,657.49,655.0,0.28011523]
[1746947922980,0.24066458,657.49,655.01,0.28011523]
[1746947923385,0.24066458,657.49,655.02,0.28011523]
[1746947923685,0.24066458,657.49,655.03,0.28011523]
[1746947924185,0.24066458,657.49,655.04,0.28011523]
[1746947924883,0.24066458,657.49,655.05,0.28011523]
[1746947925079,0.26502675,657.51,655.06,0.28011523]
[1746947925080,0.24066458,657.5,655.06,0.28011523]
[1746947925389,0.26502675,657.51,654.92,0.3053808]
[1746947925784,0.24081218,657.5,654.93,0.27993574]
[1746947926187,0.24081218,657.5,654.94,0.27993574]
[1746947926586,0.24081218,657.5,654.95,0.27993574]
[1746947926982,0.24081218,657.5,654.96,0.27993574]
[1746947927282,0.24081218,657.51,654.97,0.27993574]
[1746947927482,0.24081218,657.51,654.92,0.3053808]
[1746947927483,0.24081218,657.51,654.98,0.27993574]
[1746947927885,0.24081218,657.51,654.99,0.27993574]
[1746947928186,0.24081218,657.51,655.0,0.27993574]
[1746947928387,0.24081218,657.51,655.11,0.30529224]
[1746947928588,0.24081218,657.51,655.12,0.27993574]
[1746947928986,0.24081218,657.51,655.13,0.27993574]
[1746947929287,0.24081218,657.51,655.14,0.27993574]
[1746947929589,0.24081218,657.51,655.15,0.27993574]
[1746947929882,0.24081218,657.51,655.16,0.27993574]
[1746947930183,0.24081218,657.51,655.17,0.27993574]
[1746947930584,0.24081218,657.51,655.18,0.27993574]
[1746947930789,0.24081218,657.51,655.19,0.27993574]
[1746947931085,0.24081218,657.51,655.2,0.27993574]
[1746947931486,0.24081218,657.51,655.31,0.30519906]
[1746947931683,0.24081218,657.51,655.32,0.27993574]
[1746947932790,0.24081218,657.51,655.42,0.30514784]
[1746947933190,0.24081218,657.51,655.43,0.27993574]
[1746947933391,0.30418713,657.49,655.43,0.27993574]
[1746947933785,0.24081218,657.48,655.45,0.30513387]
[1746947933989,0.30420101,657.46,655.45,0.30513387]
[1746947934286,0.24081218,657.45,655.46,0.27993574]
[1746947934991,0.24081218,657.45,655.48,0.30511991]
[1746947935186,0.30421027,657.44,655.48,0.30511991]
[1746947935391,0.30421027,657.44,655.49,0.27993574]
[1746947935691,0.24081218,657.43,655.51,0.30510594]
[1746947935892,0.30421952,657.42,655.51,0.30510594]
[1746947936092,0.30421952,657.42,655.52,0.27993574]
[1746947936393,0.24081218,657.41,655.54,0.30509198]
[1746947936592,0.24081218,657.41,655.55,0.27993574]
[1746947936893,0.24081218,657.41,655.57,0.30507802]
[1746947937393,0.24081218,657.41,655.58,0.27993574]
[1746947939692,0.2650096,657.4,655.58,0.27993574]
[1746947940094,0.24081218,657.39,655.58,0.27993574]
[1746947940794,0.24081218,657.39,655.57,0.30507802]
[1746947941696,0.24081218,657.39,655.58,0.28002152]
[1746947942796,0.26501969,657.38,655.58,0.28002152]
[1746947943498,0.24081218,657.37,655.58,0.28002152]
[1746947944198,0.24081218,657.36,655.57,0.30507802]
[1746947944398,0.24081218,657.35,655.57,0.30507802]
[1746947944699,0.24081218,657.34,655.57,0.30507802]
[1746947944998,0.24081218,657.33,655.57,0.30507802]
[1746947945397,0.24081218,657.32,655.57,0.30507802]
[1746947945798,0.50587325,657.32,655.57,0.30507802]
[1746947945998,0.24081218,657.31,655.57,0.30507802]
[1746947947303,0.26506107,657.32,655.57,0.30507802]
[1746947947706,0.24064581,657.31,655.57,0.30507802]
[1746947949706,0.24064581,657.31,655.58,0.28004646]
[1746947950904,0.24064581,657.31,655.57,0.30507802]
[1746947951707,0.24064581,657.31,655.58,0.627]
[1746947954412,0.24064581,657.3,655.58,0.627]
[1746947954811,0.24064581,657.29,655.58,0.627]